bitfinex/quotes_SOLUSD_20230112
["timestamp","ask_amount","ask_price","bid_price","bid_amount"]
[1673561534809,20.0,16.384,16.372,17.0]
[1673561535232,45.78,16.386,16.373,34.87514915]
[1673561535440,65.77,16.39,16.374,17.0]
[1673561535645,20.0,16.39,16.375,65.81]
[1673561535859,20.0,16.39,16.376,17.0]
[1673561536188,20.0,16.39,16.377,20.0]
[1673561536505,20.0,16.39,16.378,17.0]
[1673561536720,183.0096,16.389,16.377,20.0]
[1673561536903,45.78,16.387,16.372,20.0]
[1673561537113,20.0,16.386,16.373,17.0]
[1673561537325,45.78,16.385,16.374,20.0]
[1673561537640,20.0,16.384,16.372,20.0]
[1673561538900,20.0,16.384,16.373,17.0]
[1673561539105,20.0,16.384,16.374,20.0]
[1673561539321,20.0,16.384,16.375,17.0]
[1673561539754,20.0,16.384,16.376,20.0]
[1673561540503,20.0,16.384,16.371,45.82]
[1673561540705,20.0,16.382,16.372,17.0]
[1673561540918,20.0,16.382,16.371,17.0]
[1673561541130,45.8,16.381,16.371,17.0]
[1673561541648,45.8,16.381,16.37,17.02]
[1673561541864,117.9427,16.38,16.37,17.02]
[1673561542053,20.0,16.38,16.37,17.02]
[1673561542788,20.0,16.38,16.371,17.0]
[1673561543421,20.0,16.382,16.371,62.82]
[1673561543625,45.78,16.385,16.372,20.0]
[1673561543837,132.0462,16.388,16.373,62.82]
[1673561544059,132.0462,16.388,16.374,20.0]
[1673561544277,132.0462,16.388,16.375,17.0]
[1673561544463,65.78,16.387,16.375,17.0]
[1673561544675,65.78,16.387,16.376,20.0]
[1673561547222,20.0,16.387,16.372,20.0]
[1673561547533,20.0,16.387,16.373,62.82]
[1673561547749,20.0,16.387,16.374,20.0]
[1673561548165,45.78,16.385,16.366,45.84]
[1673561548355,45.78,16.385,16.367,20.0]
[1673561548356,17.0,16.384,16.367,20.0]
[1673561548569,45.79,16.383,16.367,20.0]
[1673561549110,20.0,16.382,16.364,20.0]
[1673561549300,45.8,16.381,16.365,45.84]
[1673561549643,45.8,16.381,16.366,20.0]
[1673561549844,247.21685,16.38,16.366,20.0]
[1673561550053,20.0,16.378,16.362,20.0]
[1673561550269,20.0,16.376,16.363,45.85]
[1673561550578,20.0,16.376,16.364,20.0]
[1673561551194,20.0,16.376,16.362,20.0]
[1673561551405,20.0,16.376,16.363,62.85]
[1673561551406,45.81,16.375,16.363,62.85]
[1673561551606,45.81,16.375,16.364,20.0]
[1673561551821,20.0,16.376,16.364,20.0]
[1673561552242,20.0,16.376,16.362,20.0]
[1673561553193,45.81,16.375,16.362,20.0]
[1673561553611,45.81,16.375,16.361,45.85]
[1673561553824,20.0,16.373,16.354,45.87]
[1673561554159,182.70745,16.372,16.355,20.0]
[1673561554347,182.70745,16.372,16.351,45.88]
[1673561554348,2.94585,16.371,16.352,20.0]
[1673561554561,45.83,16.37,16.353,45.87]
[1673561554761,20.0,16.368,16.354,20.0]
[1673561554974,65.83,16.368,16.354,20.0]
[1673561555209,20.0,16.368,16.354,20.0]
[1673561555411,20.0,16.368,16.352,20.0]
[1673561555630,20.0,16.368,16.353,45.87]
[1673561555840,20.0,16.368,16.354,20.0]
[1673561556033,20.0,16.368,16.355,45.87]
[1673561558251,20.0,16.37,16.36,25.23]
[1673561558652,20.0,16.37,16.36,22.73]
[1673561559097,20.0,16.37,16.361,17.0]
[1673561559500,20.0,16.37,16.361,62.85]
[1673561560127,20.0,16.37,16.361,45.85]
[1673561560337,20.0,16.37,16.362,17.0]
[1673561561282,20.0,16.37,16.357,45.86]
[1673561561491,65.83,16.37,16.356,20.0]
[1673561561703,65.83,16.37,16.357,17.0]
[1673561562341,65.83,16.37,16.36,25.23]
[1673561563080,20.0,16.37,16.36,25.23]
[1673561566579,20.0,16.37,16.353,20.0]
[1673561566792,20.0,16.368,16.352,20.0]
[1673561567100,20.0,16.368,16.353,45.87]
[1673561567297,20.0,16.368,16.354,20.0]
[1673561567510,45.83,16.367,16.355,45.87]
[1673561567829,45.83,16.367,16.356,20.0]
[1673561568041,20.0,16.368,16.356,20.0]
[1673561568363,20.0,16.368,16.353,20.0]
[1673561568690,20.0,16.368,16.354,17.0]
[1673561568875,45.83,16.367,16.355,65.87]
[1673561569203,20.0,16.368,16.355,20.0]
[1673561569393,45.83,16.367,16.355,20.0]
[1673561569815,20.0,16.366,16.355,20.0]
[1673561570132,20.0,16.366,16.352,20.0]
[1673561570558,20.0,16.366,16.353,45.87]
[1673561570778,20.0,16.366,16.354,20.0]
[1673561571400,20.0,16.366,16.353,20.0]
[1673561571614,20.0,16.366,16.355,14.87514915]
[1673561571821,20.0,16.366,16.356,37.0]
[1673561572034,20.0,16.366,16.356,82.86]
[1673561572237,20.0,16.366,16.356,51.87514915]
[1673561573306,20.0,16.366,16.356,37.0]
[1673561573510,20.0,16.366,16.357,14.87514915]
[1673561574987,20.0,16.366,16.356,20.0]
[1673561575199,20.0,16.366,16.352,34.87514915]
[1673561575389,20.0,16.366,16.353,45.87]
[1673561575626,20.0,16.366,16.354,20.0]
[1673561575835,20.0,16.366,16.353,45.87]
[1673561576046,20.0,16.366,16.354,14.87514915]
[1673561576365,20.0,16.366,16.351,45.88]
[1673561576574,20.0,16.364,16.352,31.87514915]
[1673561577005,20.0,16.364,16.353,14.87514915]
[1673561577316,20.0,16.364,16.354,17.0]
[1673561578359,119.1765,16.365,16.355,14.87514915]
[1673561578577,119.1765,16.365,16.356,17.0]
[1673561578777,119.1765,16.365,16.357,45.86]
[1673561578993,119.1765,16.365,16.358,17.0]
[1673561579213,119.1765,16.365,16.358,31.87514915]
[1673561580560,119.1765,16.365,16.358,17.0]
[1673561580770,119.1765,16.365,16.357,31.87514915]
[1673561582050,20.0,16.364,16.356,20.0]
[1673561582360,20.0,16.364,16.355,14.87514915]
[1673561582577,20.0,16.364,16.356,20.0]
[1673561583114,20.0,16.364,16.354,20.0]
[1673561584031,20.0,16.364,16.353,20.0]
[1673561584242,20.0,16.364,16.354,17.0]
[1673561584553,20.0,16.364,16.355,20.0]
[1673561584772,20.0,16.364,16.355,65.87]
[1673561584985,20.0,16.364,16.355,20.0]
[1673561585192,119.1765,16.365,16.355,34.87514915]
[1673561585410,119.1765,16.365,16.356,62.86]
[1673561585628,119.1765,16.365,16.357,20.0]
[1673561585835,119.1765,16.365,16.358,17.0]
[1673561586678,119.1765,16.365,16.358,62.86]
[1673561586896,20.0,16.367,16.358,62.86]
[1673561587208,20.0,16.367,16.359,14.87514915]
[1673561587514,20.0,16.367,16.36,17.0]
[1673561589705,20.0,16.367,16.359,14.87514915]
[1673561589933,20.0,16.367,16.357,20.0]
[1673561590133,20.0,16.367,16.356,14.87514915]
[1673561590346,20.0,16.367,16.357,20.0]
[1673561591292,20.0,16.367,16.358,17.0]
[1673561593412,20.0,16.367,16.357,20.0]
[1673561594035,20.0,16.367,16.355,20.0]
[1673561594227,20.0,16.367,16.356,45.86]
[1673561594441,20.0,16.367,16.357,20.0]
[1673561596877,20.0,16.367,16.358,17.0]
[1673561598131,20.0,16.367,16.355,65.87]
[1673561598555,20.0,16.367,16.355,20.0]
[1673561598758,116.2863,16.37,16.36,16.97]
[1673561599594,116.2863,16.37,16.361,17.0]
[1673561600651,116.2863,16.37,16.356,45.86]
[1673561600865,45.83,16.369,16.357,20.0]
[1673561601059,45.83,16.369,16.354,65.87]
[1673561601269,20.0,16.368,16.354,65.87]
[1673561601708,45.83,16.367,16.354,20.0]
[1673561601925,20.0,16.368,16.353,20.0]
[1673561602235,20.0,16.368,16.354,45.87]
[1673561602552,20.0,16.368,16.355,20.0]
[1673561602737,45.83,16.367,16.356,17.0]
[1673561602948,45.83,16.367,16.357,20.0]
[1673561603392,65.83,16.368,16.357,20.0]
[1673561604107,20.0,16.368,16.357,20.0]
[1673561605382,20.0,16.368,16.358,17.0]
[1673561607172,20.0,16.368,16.359,45.86]
[1673561607365,20.0,16.368,16.36,17.0]
[1673561607784,20.0,16.368,16.359,17.0]
[1673561608306,20.0,16.368,16.36,62.82]
[1673561608522,20.0,16.368,16.361,17.0]
[1673561609571,20.0,16.374,16.362,65.85]
[1673561609776,20.0,16.374,16.363,17.0]
[1673561613065,20.0,16.37,16.361,17.0]
[1673561614954,20.0,16.37,16.355,45.87]
[1673561615159,20.0,16.368,16.356,20.0]
[1673561615374,20.0,16.368,16.355,20.0]
[1673561615981,20.0,16.368,16.36,16.97]
[1673561616836,20.0,16.368,16.361,17.0]
[1673561617271,20.0,16.368,16.36,16.97]
[1673561619371,20.0,16.368,16.361,17.0]
[1673561619582,20.0,16.368,16.36,16.97]
[1673561620317,20.0,16.368,16.361,17.0]
[1673561620538,20.0,16.369,16.361,17.0]
[1673561621052,119.8629,16.371,16.361,62.85]
[1673561621455,20.0,16.373,16.361,62.85]
[1673561624715,20.0,16.373,16.362,20.0]
[1673561625038,20.0,16.373,16.363,62.85]
[1673561625255,20.0,16.373,16.364,20.0]
[1673561625457,20.0,16.373,16.365,62.84]
[1673561625671,20.0,16.373,16.366,20.0]
[1673561625867,20.0,16.373,16.367,17.0]
[1673561636838,20.0,16.373,16.366,20.0]
[1673561637154,20.0,16.373,16.367,20.0]
[1673561637346,20.0,16.373,16.363,45.85]
[1673561637677,20.0,16.373,16.364,37.0]
[1673561640301,20.0,16.373,16.365,45.84]
[1673561640515,20.0,16.373,16.366,37.0]
[1673561642189,20.0,16.373,16.366,20.0]
[1673561642400,20.0,16.376,16.362,20.0]
[1673561642611,20.0,16.376,16.363,45.85]
[1673561642813,20.0,16.376,16.364,20.0]
[1673561643025,20.0,16.376,16.365,45.84]
[1673561643229,65.81,16.375,16.361,45.85]
[1673561643452,65.81,16.375,16.36,17.11]
[1673561643667,20.0,16.372,16.36,17.11]
[1673561643874,110.1771,16.371,16.36,12.72]
[1673561644095,20.0,16.37,16.36,12.72]
[1673561644504,20.0,16.37,16.36,63.65]
[1673561644816,20.0,16.37,16.361,17.0]
[1673561645033,20.0,16.37,16.362,45.85]
[1673561645243,20.0,16.37,16.363,17.0]
[1673561645982,20.0,16.37,16.362,17.0]
[1673561648079,20.0,16.37,16.363,65.85]
[1673561648283,20.0,16.37,16.363,45.85]
[1673561648500,20.0,16.37,16.36,63.65]
[1673561648835,20.0,16.37,16.36,12.71]
[1673561649019,20.0,16.37,16.361,45.85]
[1673561649790,20.0,16.37,16.362,17.0]
[1673561650184,20.0,16.37,16.361,17.0]
[1673561650395,45.82,16.373,16.361,17.0]
[1673561650611,20.0,16.376,16.362,80.72514915]
[1673561650810,20.0,16.376,16.363,17.0]
[1673561651026,20.0,16.376,16.364,45.84]
[1673561651235,20.0,16.376,16.365,37.0]
[1673561651446,20.0,16.376,16.366,45.84]
[1673561651655,20.0,16.376,16.367,37.0]
[1673561657136,20.0,16.378,16.368,45.83]
[1673561657345,20.0,16.378,16.37,12.72]
[1673561657557,20.0,16.378,16.371,17.0]
[1673561659140,65.8,16.381,16.371,17.0]
[1673561659451,20.0,16.381,16.371,17.0]
[1673561660069,45.8,16.38,16.367,20.0]
[1673561660279,20.0,16.379,16.368,17.0]
[1673561660718,20.0,16.377,16.368,17.0]
[1673561663234,20.0,16.377,16.366,45.84]
[1673561663235,20.0,16.377,16.367,17.0]
[1673561664190,20.0,16.377,16.368,45.83]
[1673561664405,20.0,16.377,16.369,17.0]
[1673561665440,20.0,16.377,16.369,31.85852535]
[1673561665645,20.0,16.377,16.369,17.0]
[1673561668385,20.0,16.377,16.371,17.0]
[1673561671244,20.0,16.377,16.366,60.69852535]
[1673561671433,20.0,16.377,16.365,20.0]
[1673561671434,20.0,16.377,16.367,20.0]
[1673561671760,20.0,16.377,16.365,20.0]
[1673561671962,20.0,16.377,16.364,20.0]
[1673561672177,20.0,16.377,16.365,45.84]
[1673561672584,20.0,16.377,16.366,17.0]
[1673561672795,20.0,16.377,16.366,37.0]
[1673561682074,65.81,16.377,16.363,45.85]
[1673561682282,20.0,16.375,16.361,45.85]
[1673561682480,65.81,16.375,16.361,45.85]
[1673561684178,65.81,16.375,16.361,91.17993356]
[1673561684497,20.0,16.375,16.361,212.13207906]
[1673561684704,20.0,16.375,16.362,37.0]
[1673561684914,20.0,16.375,16.363,45.85]
[1673561685232,20.0,16.375,16.364,37.0]
[1673561686284,20.0,16.375,16.364,20.0]
[1673561686496,20.0,16.375,16.361,45.85]
[1673561686689,65.81,16.375,16.361,45.85]
[1673561687419,20.0,16.375,16.361,45.85]
[1673561688905,20.0,16.375,16.362,17.0]
[1673561689116,20.0,16.375,16.363,45.85]
[1673561690378,20.0,16.375,16.364,17.0]
[1673561693855,118.4895,16.376,16.364,17.0]
[1673561695857,118.4895,16.376,16.365,45.84]
[1673561696045,118.4895,16.376,16.366,17.0]
[1673561697637,118.4895,16.376,16.367,20.0]
[1673561697956,118.4895,16.376,16.368,17.0]
[1673561699203,118.4895,16.376,16.367,20.0]
[1673561699414,118.4895,16.376,16.365,20.0]
[1673561699611,118.4895,16.376,16.364,20.0]
[1673561700663,316.57642548,16.401,16.37,190.79]
[1673561700998,63.26502375,16.405,16.379,118.4895]
[1673561701193,63.26502375,16.405,16.38,67.72]
[1673561701404,45.73,16.404,16.38,131.74754056]
[1673561701727,45.73,16.404,16.39,12.72]
[1673561702999,45.73,16.404,16.391,17.0]
[1673561703210,137.25426071,16.404,16.391,17.0]
[1673561703512,108.99502375,16.404,16.391,17.0]
[1673561703732,108.99502375,16.404,16.391,31.85852535]
[1673561703922,108.99502375,16.406,16.391,31.85852535]
[1673561704134,45.73,16.406,16.391,31.85852535]
[1673561704573,45.73,16.406,16.391,17.0]
[1673561705920,45.73,16.406,16.392,14.85852535]
[1673561706137,45.73,16.406,16.393,17.0]
[1673561706357,45.73,16.406,16.391,17.0]
[1673561712238,21.29,16.39,16.389,14.85852535]
[1673561712552,45.73,16.406,16.389,36.77852535]
[1673561712762,45.73,16.406,16.39,13.68]
[1673561712973,45.73,16.406,16.39,14.64]
[1673561714230,45.73,16.406,16.391,14.85852535]
[1673561714439,118.1435,16.407,16.392,17.0]
[1673561714655,45.72,16.406,16.393,45.76]
[1673561714979,45.72,16.406,16.394,17.0]
[1673561715179,45.72,16.406,16.39,12.72]
[1673561715389,45.72,16.406,16.389,20.0]
[1673561715599,17.0,16.405,16.382,20.0]
[1673561715810,45.73,16.404,16.383,45.79]
[1673561716021,45.73,16.404,16.384,20.0]
[1673561716227,45.73,16.404,16.385,45.78]
[1673561716437,45.73,16.405,16.386,20.0]
[1673561716660,45.73,16.405,16.387,64.7]
[1673561716870,45.73,16.405,16.388,20.0]
[1673561717088,45.73,16.405,16.389,62.77]
[1673561717401,45.73,16.405,16.389,17.0]
[1673561718330,45.72,16.406,16.389,17.0]
[1673561720009,17.0,16.405,16.389,17.0]
[1673561720219,45.73,16.404,16.389,17.0]
[1673561722244,45.73,16.404,16.389,62.77]
[1673561723276,17.0,16.403,16.388,20.0]
[1673561723488,17.0,16.403,16.382,20.0]
[1673561723489,45.74,16.402,16.382,20.0]
[1673561723714,45.74,16.402,16.383,45.79]
[1673561723908,45.74,16.402,16.384,20.0]
[1673561724247,111.6242,16.401,16.385,45.78]
[1673561724439,45.74,16.4,16.386,20.0]
[1673561724647,45.74,16.4,16.387,17.0]
[1673561724873,58.46,16.4,16.387,17.0]
[1673561725063,58.46,16.4,16.388,20.0]
[1673561725273,58.46,16.4,16.389,17.0]
[1673561730327,12.72,16.4,16.389,17.0]
[1673561730648,45.74,16.399,16.389,17.0]
[1673561734739,45.74,16.399,16.388,20.0]
[1673561734952,45.74,16.399,16.387,20.0]
[1673561735674,45.74,16.399,16.385,14.85852535]
[1673561735890,45.74,16.399,16.386,37.0]
[1673561736751,45.74,16.399,16.386,51.85852535]
[1673561739893,45.74,16.399,16.386,37.0]
[1673561741473,45.74,16.399,16.381,45.79]
[1673561741680,226.23288907,16.398,16.374,45.81]
[1673561741920,65.69585,16.397,16.377,14.85852535]
[1673561742213,2.94585,16.396,16.378,45.8]
[1673561742433,45.75,16.395,16.378,45.8]
[1673561742627,45.75,16.395,16.379,14.85852535]
[1673561742834,45.75,16.395,16.38,17.0]
[1673561743260,110.7983,16.394,16.38,31.85852535]
[1673561743581,45.76,16.393,16.38,31.85852535]
[1673561744530,45.76,16.393,16.38,17.0]
[1673561744949,12.72,16.39,16.379,17.0]
[1673561745487,12.72,16.39,16.378,17.0]
[1673561745801,119.2497,16.389,16.378,17.0]
[1673561746636,119.2497,16.389,16.378,31.85852535]
[1673561746858,165.0197,16.389,16.378,31.85852535]
[1673561747039,119.2497,16.389,16.378,31.85852535]
[1673561748192,174.06332375,16.394,16.379,45.8]
[1673561748407,174.06332375,16.394,16.38,17.0]
[1673561748617,174.06332375,16.394,16.381,45.79]
[1673561748835,174.06332375,16.394,16.382,17.0]
[1673561749277,174.06332375,16.394,16.382,62.79]
[1673561750124,110.7983,16.394,16.382,62.79]
[1673561750946,110.7983,16.394,16.382,17.0]
[1673561751164,110.7983,16.394,16.381,62.79]
[1673561759572,110.7983,16.394,16.381,45.79]
[1673561759791,45.76,16.393,16.372,45.82]
[1673561759988,45.76,16.393,16.378,14.85852535]
[1673561760198,45.76,16.393,16.379,45.8]
[1673561760736,45.76,16.393,16.379,60.65852535]
[1673561761045,45.76,16.393,16.38,17.0]
[1673561765357,45.76,16.393,16.38,31.85852535]
[1673561768826,45.76,16.393,16.38,17.0]
[1673561772940,45.76,16.393,16.38,31.85852535]
[1673561773465,2.94585,16.396,16.381,65.79]
[1673561773674,111.7572,16.398,16.382,18.92]
[1673561773988,111.7572,16.398,16.383,45.79]
[1673561774180,111.7572,16.398,16.384,38.92]
[1673561774391,111.7572,16.398,16.385,45.78]
[1673561774602,111.7572,16.398,16.386,37.0]
[1673561775124,111.7572,16.398,16.386,51.85852535]
[1673561775884,111.7572,16.398,16.386,37.0]
[1673561776712,111.7572,16.398,16.386,51.85852535]
[1673561787038,111.7572,16.398,16.386,20.0]
[1673561787349,62.75,16.397,16.382,20.0]
[1673561788398,62.75,16.397,16.383,17.0]
[1673561788607,62.75,16.397,16.384,20.0]
[1673561788807,62.75,16.397,16.385,17.0]
[1673561789026,62.75,16.397,16.386,20.0]
[1673561795004,45.75,16.397,16.387,17.0]
[1673561795332,45.75,16.397,16.388,20.0]
[1673561795540,111.7572,16.398,16.388,20.0]
[1673561795742,111.7572,16.398,16.389,17.0]
[1673561795958,111.7572,16.398,16.387,20.0]
[1673561796170,111.7572,16.398,16.388,17.0]
[1673561796502,111.7572,16.398,16.389,20.0]
[1673561796926,111.7572,16.398,16.39,17.0]
[1673561797113,111.7572,16.398,16.389,20.0]
[1673561797317,111.7572,16.398,16.386,65.78]
[1673561797543,111.7572,16.398,16.387,17.0]
[1673561797749,111.7572,16.398,16.388,20.0]
[1673561798180,45.75,16.397,16.388,20.0]
[1673561798393,45.75,16.397,16.382,20.0]
[1673561798603,45.75,16.397,16.383,17.0]
[1673561798818,45.75,16.397,16.384,20.0]
[1673561799013,45.75,16.397,16.385,17.0]
[1673561799657,45.75,16.397,16.386,20.0]
[1673561801334,45.75,16.397,16.385,17.0]
[1673561802079,17.0,16.396,16.375,45.81]
[1673561802288,45.75,16.395,16.376,1.92]
[1673561802502,45.75,16.395,16.377,45.8]
[1673561802692,45.75,16.395,16.378,20.0]
[1673561803032,45.75,16.395,16.379,62.8]
[1673561809948,45.75,16.395,16.379,62.8]
[1673561812062,17.0,16.394,16.379,62.8]
[1673561812276,45.76,16.393,16.379,62.8]
[1673561812671,111.7572,16.398,16.379,62.8]
[1673561812672,111.7572,16.398,16.38,100.39852535]
[1673561812886,111.7572,16.398,16.381,62.79]
[1673561813096,111.7572,16.398,16.382,21.92]
[1673561813334,111.7572,16.398,16.383,62.79]
[1673561813527,111.7572,16.398,16.384,20.0]
[1673561813733,111.7572,16.398,16.385,62.78]
[1673561813947,111.7572,16.398,16.386,20.0]
[1673561814367,111.7572,16.398,16.387,17.0]
[1673561814574,111.7572,16.398,16.388,20.0]
[1673561814893,111.7572,16.398,16.389,17.0]
[1673561821207,109.7572,16.398,16.389,17.0]
[1673561824363,118.1435,16.407,16.39,100.49852535]
[1673561824556,118.1435,16.407,16.391,45.76]
[1673561824758,118.1435,16.407,16.392,38.92]
[1673561824979,118.1435,16.407,16.393,45.76]
[1673561825191,163.6673,16.414,16.394,38.92]
[1673561825402,163.6673,16.414,16.395,45.75]
[1673561825605,163.6673,16.414,16.4,12.72]
[1673561825816,163.6673,16.414,16.401,17.0]
[1673561826147,163.6673,16.414,16.401,31.85852535]
[1673561826348,163.6673,16.414,16.401,17.0]
[1673561826547,163.6673,16.414,16.402,14.85852535]
[1673561826758,163.6673,16.414,16.403,17.0]
[1673561827194,163.6673,16.414,16.403,31.85852535]
[1673561828349,117.9673,16.414,16.403,31.85852535]
[1673561828553,45.7,16.413,16.403,31.85852535]
[1673561828964,117.9673,16.414,16.403,31.85852535]
[1673561829507,45.7,16.413,16.403,31.85852535]
[1673561829822,117.9673,16.414,16.403,31.85852535]
[1673561830029,45.7,16.413,16.403,31.85852535]
[1673561830658,117.9673,16.414,16.403,31.85852535]
[1673561831296,45.7,16.413,16.403,31.85852535]
[1673561833281,117.9673,16.414,16.403,31.85852535]
[1673561834661,45.7,16.413,16.403,31.85852535]
[1673561835280,45.7,16.413,16.397,45.75]
[1673561835502,45.7,16.413,16.39,63.71]
[1673561835503,45.7,16.413,16.398,20.0]
[1673561835814,45.7,16.413,16.401,14.85852535]
[1673561836747,45.7,16.413,16.402,17.0]
[1673561837482,45.7,16.413,16.401,17.0]
[1673561841173,45.7,16.413,16.4,14.85852535]
[1673561842432,45.7,16.413,16.401,17.0]
[1673561843358,45.7,16.413,16.4,17.0]
[1673561845462,45.7,16.413,16.4,62.74]
[1673561845678,45.7,16.413,16.4,17.0]
[1673561846089,12.72,16.41,16.393,45.76]
[1673561846316,12.72,16.41,16.394,20.0]
[1673561846537,12.72,16.41,16.395,45.75]
[1673561846731,12.72,16.41,16.396,20.0]
[1673561847347,45.71,16.409,16.397,17.0]
[1673561847561,45.71,16.409,16.398,20.0]
[1673561847985,17.0,16.408,16.398,20.0]
[1673561848196,45.72,16.407,16.392,20.0]
[1673561848406,159.0041,16.407,16.393,45.76]
[1673561848633,113.2841,16.407,16.394,20.0]
[1673561848824,113.2841,16.407,16.395,45.75]
[1673561849031,113.2841,16.407,16.396,20.0]
[1673561849263,113.2841,16.407,16.397,17.0]
[1673561849467,113.2841,16.407,16.398,20.0]
[1673561849664,113.2841,16.407,16.399,17.0]
[1673561850435,113.2841,16.407,16.398,20.0]
[1673561850436,159.0041,16.407,16.398,20.0]
[1673561850646,159.0041,16.407,16.392,20.0]
[1673561850859,159.0041,16.407,16.393,45.76]
[1673561851065,159.0041,16.407,16.394,20.0]
[1673561851804,159.0041,16.407,16.392,20.0]
[1673561852015,159.0041,16.407,16.393,45.76]
[1673561852201,159.0041,16.407,16.394,20.0]
[1673561852620,159.0041,16.407,16.395,17.0]
[1673561852854,159.0041,16.407,16.396,20.0]
[1673561853172,159.0041,16.407,16.39,12.83]
[1673561853173,2.9534,16.406,16.385,45.78]
[1673561853486,45.73,16.405,16.385,14.85852535]
[1673561853675,17.0,16.404,16.386,45.78]
[1673561854016,45.73,16.403,16.387,14.85852535]
[1673561854208,115.3629,16.402,16.387,14.85852535]
[1673561854418,45.74,16.401,16.388,38.92]
[1673561854824,45.74,16.401,16.389,14.85852535]
[1673561855055,45.74,16.401,16.39,17.0]
[1673561856204,115.3629,16.402,16.39,17.0]
[1673561857996,45.74,16.401,16.39,17.0]
[1673561859157,45.74,16.401,16.388,21.92]
[1673561859158,45.74,16.401,16.389,17.0]
[1673561862617,115.3629,16.402,16.389,17.0]
[1673561865455,115.3629,16.402,16.389,62.77]
[1673561865665,115.3629,16.402,16.389,17.0]
[1673561872620,115.3629,16.402,16.388,20.0]
[1673561873028,45.74,16.401,16.388,20.0]
[1673561873241,45.74,16.401,16.386,20.0]
[1673561873569,45.74,16.401,16.384,45.78]
[1673561873885,45.74,16.401,16.385,52.81852535]
[1673561874076,45.74,16.401,16.386,46.74]
[1673561874291,45.74,16.401,16.387,37.0]
[1673561886920,45.74,16.401,16.387,20.0]
[1673561887321,45.74,16.401,16.383,65.79]
[1673561888363,45.74,16.401,16.384,17.0]
[1673561888578,45.74,16.401,16.385,65.78]
[1673561888784,45.74,16.401,16.386,17.0]
[1673561889231,45.74,16.401,16.387,20.0]
[1673561889418,45.74,16.401,16.388,17.0]